[Event "10th Amsterdam Science Park 2022"]
[Site "Amsterdam"]
[Date "2022.07.19"]
[Round "2.1"]
[White "Zwirs, Nico"]
[Black "Bullen, Alex"]
[Result "1-0"]
[ECO "A13"]
[WhiteElo "2485"]
[BlackElo "2106"]
[Annotator "TA"]
[PlyCount "63"]
[EventDate "2022.07.18"]
[EventCountry "NED"]
[SourceTitle "playchess.com"]
[Source "ChessBase"]
[SourceQuality "1"]
[TimeControl "5400+30"]

{[%evp 14,62,16,12,39,-6,0,-22,-15,-16,-11,-21,-47,-62,61,-81,0,1,0,0,0,2,39,54,108,115,648,632,652,624,902,895,866,854,758,631,643,636,629,595,581,286,282,279,258,252,409,402,29998,29999,29999]} 1. c4 {[%emt 0:00:02]} e6 {[%emt 0:00:17]} 2. g3 {[%emt 0:00:20]} d5 {[%emt 0:00:10]} 3. Bg2 {[%emt 0:00:10]} Nf6 {[%emt 0:00:10]} 4. Nf3 {[%emt 0:00:21]} d4 {[%emt 0:01:27]} 5. O-O {[%emt 0:00:15]} c5 {[%emt 0:00:06]} 6. e3 {[%emt 0:00:14]} Nc6 {[%emt 0:00:08]} 7. exd4 {[%emt 0:00:07]} cxd4 {[%emt 0:00:09]} 8. d3 {[%emt 0:00:09]} h6 {[%emt 0:02:00] A13: English Opening: 1...e6.} 9. Re1 {[%emt 0:00:52]} Bd6 {[%emt 0:04:05]} 10. Na3 {[%emt 0:00:06]} O-O {[%emt 0:02:33] The position is equal.} 11. Rb1 {[%emt 0:02:54]} Re8 {[%emt 0:05:00] [#]} 12. Bd2 $146 {[%emt 0:07:55]} ({Predecessor:} 12. Nc2 a5 13. a3 e5 14. b4 Qc7 15. b5 Nb8 16. Nfxd4 exd4 17. Rxe8+ Nxe8 18. Nxd4 {0-1 (58) Pantsulaia,L (2553)-Lupulescu,C (2656) Tornelo INT 2021}) 12... e5 {[%emt 0:02:40]} 13. b4 {[%emt 0:00:08]} Bf5 {[%emt 0:05:55]} ({Black should play} 13... a5 $15 14. Nc2 axb4) 14. Rb3 {[%emt 0:06:57]} (14. c5 $14 {stays ahead.} Bc7 15. b5) 14... Qd7 {[%emt 0:08:43]} ({Black should try} 14... a5 $17 {[%cal Ra5b4]} 15. bxa5 Nxa5 16. Bxa5 Rxa5) 15. c5 {[%emt 0:02:29]} Bc7 {[%emt 0:00:38]} 16. Nc4 {[%emt 0:06:01]} e4 {[%emt 0:02:28]} 17. dxe4 {[%emt 0:02:21]} Nxe4 {[%emt 0:04:44]} 18. b5 {[%emt 0:08:47]} Nd8 {[%emt 0:05:32] [#]} (18... Nxd2 $14 19. Rxe8+ Rxe8 20. Qxd2 Ne5 21. Ncxe5 Bxe5) 19. Bb4 $1 $16 {[%emt 0:00:22]} Qxb5 $2 {[%emt 0:18:01][%mdl 8192] This costs Black the game.} (19... Ne6 $16) 20. Nxd4 $18 {[%emt 0:07:35]} Qxc4 {[%emt 0:02:36]} 21. Nxf5 {[%emt 0:00:15]} Nf6 {[%emt 0:07:51]} 22. Rxe8+ {[%emt 0:03:44]} Nxe8 {[%emt 0:00:07]} 23. Bd5 {[%emt 0:19:25]} Qa6 {[%emt 0:00:24]} 24. Qg4 {[%emt 0:02:56] Strongly threatening Re3.} Qf6 {[%emt 0:04:57]} 25. Re3 {[%emt 0:04:00]} Ne6 {[%emt 0:03:20]} 26. Bc3 {[%emt 0:02:48] This bishop pair is nice.} Qg5 {[%emt 0:00:40] [#]} 27. Bxe6 $1 {[%emt 0:04:20]} fxe6 {[%emt 0:01:14]} 28. Qxg5 {[%emt 0:00:05]} hxg5 {[%emt 0:00:11]} 29. Rxe6 {[%emt 0:00:01] Hoping for Re7.} Rd8 $2 {[%emt 0:03:08]} (29... Kf8 30. Kg2 Rd8) 30. Re7 {[%emt 0:01:01]} g6 {[%emt 0:02:30]} (30... Kf8 $18 31. Bxg7+ Nxg7) 31. Nh6+ {[%emt 0:00:18]} Kf8 {[%emt 0:00:05]} 32. Rf7# {[%emt 0:00:04] Weighted Error Value: White=0.40/Black=0.90} 1-0

[Event "10th Amsterdam Science Park 2022"]
[Site "Amsterdam"]
[Date "2022.07.19"]
[Round "2.2"]
[White "Schagen, Walt"]
[Black "Van Delft, Merijn"]
[Result "0-1"]
[ECO "B81"]
[WhiteElo "2107"]
[BlackElo "2383"]
[Annotator "TA"]
[PlyCount "140"]
[EventDate "2022.07.18"]
[EventCountry "NED"]
[SourceTitle "playchess.com"]
[Source "ChessBase"]
[SourceQuality "1"]
[TimeControl "5400+30"]

{[%evp 17,140,22,18,0,0,-3,-18,-35,-29,-35,-26,-58,-56,-58,-34,-48,-43,-44,-43,-42,-35,-25,0,-1,0,-26,-18,-14,20,-44,-62,-93,-79,-85,-80,-93,-85,-89,-58,-126,-130,-377,-375,-429,-434,-717,-554,-574,-545,-1590,-1631,-1889,-1378,-1393,-1346,-1043,0,0,892,202,195,-53,-62,-92,-76,-459,-452,-462,-453,-458,-449,-930,-496,-923,-931,-638,-904,-835,-802,-727,-673,-612,-604,-823,-785,-770,-733,-1452,-1264,-1593,-1547,-1346,-1198,-1096,-658,-1133,-1021,-1048,-915,-1751,-1723,-2284,-2533,-2270,-2055,-1876,-1615,-3296,-1710,-29977,-5929,-29981,-29982,-29981,-29982,-29983,-29983,-29985,-29986,-29987,-29988,-29989,-29990,-29990,-29991]} 1. e4 {[%emt 0:00:03]} c5 {[%emt 0:00:08]} 2. Nf3 {[%emt 0:00:05]} d6 {[%emt 0:00:17]} 3. d4 {[%emt 0:00:09]} cxd4 {[%emt 0:00:07]} 4. Nxd4 {[%emt 0:00:04]} Nf6 {[%emt 0:00:09]} 5. Nc3 {[%emt 0:00:09]} a6 {[%emt 0:00:07]} 6. h3 {[%emt 0:00:21]} e6 {[%emt 0:03:01]} 7. g4 {[%emt 0:00:17]} Nfd7 {[%emt 0:00:10]} 8. g5 {[%emt 0:04:19]} b5 {[%emt 0:01:36][%cal Bb7b5,Bb5b4][%mdl 32]} 9. Bg2 {[%emt 0:12:28]} Bb7 {[%emt 0:00:12]} 10. O-O {[%emt 0:01:19] B81: Sicilian Scheveningen: Keres Attack.} Nc6 {[%emt 0:04:57] [#]} 11. a4 $146 {[%emt 0:04:31]} ({Predecessor:} 11. Re1 Be7 12. Nxc6 Bxc6 13. Qd4 O-O 14. b3 Bxg5 15. Qxd6 Rc8 16. Bxg5 Qxg5 17. Re3 Rfd8 {0-1 (35) Abdumalik,Z (2478)-Hou,Y (2658) Chess.com INT 2020}) 11... b4 {[%emt 0:04:06]} 12. Nce2 {[%emt 0:04:41] The position is equal.} Nxd4 {[%emt 0:05:50]} 13. Qxd4 {[%emt 0:06:33]} a5 {[%emt 0:01:45]} 14. c3 {[%emt 0:01:00]} Nc5 {[%emt 0:04:44]} 15. Qe3 {[%emt 0:15:28]} (15. cxb4 Nb3 16. Qd3 Nxa1 $17) 15... bxc3 {[%emt 0:11:41]} (15... Nb3 $5 {[%cal Rb3a1]} 16. Rb1 Be7 $15) 16. bxc3 {[%emt 0:05:21]} Be7 {[%emt 0:03:57]} 17. Nd4 {[%emt 0:02:29]} O-O {[%emt 0:03:58]} 18. Rd1 {[%emt 0:01:54]} Ra6 {[%emt 0:08:16]} 19. c4 {[%emt 0:01:06]} Qa8 {[%emt 0:04:51][%cal Rb7e4]} 20. Nb5 $1 {[%emt 0:10:44]} Rc8 {[%emt 0:03:06][%cal Rb7e4] Prevents Nc7.} (20... Nxe4 $2 21. Nc7 Qc8 22. Nxa6 Nxg5 23. Qa7 Nxh3+ 24. Kh2 (24. Bxh3 Qc6 $16) 24... Qxc4 25. Qxb7 $18 (25. Bxb7 Qh4 $11)) 21. f3 {[%emt 0:01:51]} e5 {[%emt 0:06:24]} 22. h4 {[%emt 0:01:36]} Ne6 {[%emt 0:00:38]} 23. Bh3 {[%emt 0:02:27]} (23. Ba3 $11) 23... d5 $15 {[%emt 0:08:30]} 24. Ba3 {[%emt 0:06:27]} (24. exd5 $2 Bc5 25. dxe6 Bxe3+ 26. Bxe3 Rxe6 $19) 24... d4 {[%emt 0:01:48]} 25. Qb3 {[%emt 0:03:33]} Bxa3 {[%emt 0:01:46]} 26. Qxa3 {[%emt 0:02:23][%cal Oc4c5]} Rxc4 {[%emt 0:11:15]} 27. Qe7 {[%emt 0:01:23]} Nf4 {[%emt 0:00:50]} 28. Bf1 {[%emt 0:00:24]} (28. Bf5 $15) 28... Re6 $17 {[%emt 0:02:22]} 29. Qa3 {[%emt 0:03:05]} (29. Qd7 $17 {was the only chance.} Qc8 30. Qxc8+ Rxc8 31. Rdc1) 29... Rcc6 $19 {[%emt 0:00:38]} 30. Rac1 {[%emt 0:00:32]} Qd8 {[%emt 0:00:44] Against Nc7. aiming for ...h6.} 31. Qb3 {[%emt 0:03:03]} (31. Rb1 $142 Ba6 32. Na7) 31... h6 {[%emt 0:02:18][%cal Bh7h6,Bh6g5,Bg5g4][%mdl 32]} 32. Bc4 {[%emt 0:00:14]} hxg5 {[%emt 0:01:54]} 33. h5 {[%emt 0:00:59] [#]} g4 $1 {[%emt 0:01:13]} 34. Bxe6 {[%emt 0:01:51]} Rxe6 {[%emt 0:00:46]} 35. Nxd4 {[%emt 0:00:33] [#]} Qh4 $1 {[%emt 0:01:56]} 36. Nf5 {[%emt 0:01:21] [#]} Qh3 $2 {[%emt 0:00:50]} 37. Rd2 $1 $11 {[%emt 0:00:57]} Ba6 $2 {[%emt 0:01:23][%mdl 8192]} (37... gxf3 $11 38. Qxb7 Ne2+ 39. Rxe2 Qg4+ 40. Kh1 fxe2) 38. Rh2 $2 {[%emt 0:00:55]} (38. Qb8+ Kh7 39. Qf8 Nxh5 40. Rh2 (40. Qxf7 Rf6 $11)) 38... Ne2+ $18 {[%emt 0:00:37] [#]} (38... Qxf3 $2 39. Qb8+ Kh7 40. Qf8 Qe3+ 41. Nxe3 $18) 39. Kh1 $2 {[%emt 0:00:43]} ({White must play} 39. Rxe2 $1 $18 {[%mdl 512] Qb8+ would kill now.} gxf3 40. Rf2 Qg4+ 41. Kh1 Qxe4 {[#]} 42. Nxg7 $1 (42. Rxf3 $2 Be2 $19) (42. Qxf3 Qxf3+ 43. Rxf3 Bb7 $16) 42... Kxg7 43. Rg1+ (43. Rxf3 $2 Rf6 $19) (43. Qxf3 $2 Qxf3+ 44. Rxf3 Bb7 $19) 43... Kf6 44. Rxf3+ (44. Qxf3+ Qxf3+ 45. Rxf3+ Ke7 $16) 44... Ke7 45. Rg7 Qh4+ 46. Kg2 Qxh5 47. Rgxf7+ (47. Rfxf7+ Qxf7 48. Rxf7+ Kxf7 $16) 47... Qxf7 48. Rxf7+ Kxf7 49. Kf3) 39... Qxf3+ $40 {[%emt 0:00:23][%mdl 128] White needs to defend precisely.} 40. Qxf3 {[%emt 0:00:11]} gxf3 {[%emt 0:00:05] Dancing on a razor blade.} 41. Rf1 {[%emt 0:01:12][%mdl 8192]} (41. h6 $17 {is more resistant.} gxh6 42. Rc7) 41... Bd3 $19 {[%emt 0:00:00]} 42. Rh4 {[%emt 0:00:00]} Nf4 {[%emt 0:00:00]} 43. Rf2 {[%emt 0:00:00]} Bxe4 {[%emt 0:00:00]} 44. Nd4 {[%emt 0:00:00]} (44. Ng3 $142 Bc6 45. Kg1) 44... Rb6 {[%emt 0:00:00]} 45. Kh2 {[%emt 0:00:00]} (45. Kg1 $142 Rb4 46. Rd2) 45... exd4 {[%emt 0:00:00]} 46. Rxf4 {[%emt 0:00:00][%mdl 4096] Endgame KRR-KRB} f5 {[%emt 0:00:00]} 47. Kg3 {[%emt 0:00:00]} d3 {[%emt 0:00:00]} 48. Rh4 {[%emt 0:00:00]} Kh7 {[%emt 0:00:00]} 49. Kf4 {[%emt 0:00:13]} Rb1 {[%emt 0:00:00]} 50. h6 {[%emt 0:02:14]} gxh6 {[%emt 0:00:00] Threatens to win with ...Kg7.} 51. Ke5 {[%emt 0:00:35]} Rb6 {[%emt 0:00:00]} 52. Rfh2 {[%emt 0:00:46]} Kg7 {[%emt 0:00:00] White must now prevent ...Rc6.} 53. R4h3 {[%emt 0:00:30]} Kf7 {[%emt 0:00:00]} 54. Rd2 {[%emt 0:01:09]} Re6+ {[%emt 0:00:00]} 55. Kd4 {[%emt 0:00:32]} Kg6 {[%emt 0:00:20]} 56. Rdh2 {[%emt 0:00:23]} Kg7 {[%emt 0:01:10] Hoping for ...Rc6.} 57. Ke3 {[%emt 0:01:33]} Rg6 {[%emt 0:00:18] And now ...Rg2 would win.} 58. Rd2 {[%emt 0:00:45]} Rg2 {[%emt 0:01:01]} 59. Rh2 {[%emt 0:00:26]} Kg6 {[%emt 0:00:39] ...Kg5 is the strong threat.} 60. Kf4 {[%emt 0:00:08]} h5 {[%emt 0:01:13][%cal Bh6h5,Bh5h4,Bh4h3,Bh3h2][%mdl 32]} 61. Rb2 {[%emt 0:00:06]} Bc6 {[%emt 0:01:14]} 62. Ke3 {[%emt 0:01:00]} h4 {[%emt 0:01:00] Strongly threatening ...Kg5.} 63. Kxd3 {[%emt 0:01:50]} Kg5 {[%emt 0:00:18] ( -> ...Rxh2)} 64. Kd4 {[%emt 0:00:25]} Rxb2 {[%emt 0:01:32] Black mates.} 65. Rxb2 {[%emt 0:00:05] KR-KB} Kf4 {[%emt 0:00:07]} 66. Ra2 {[%emt 0:01:28]} h3 {[%emt 0:00:23]} 67. Kc5 {[%emt 0:00:10]} Be4 {[%emt 0:00:29]} 68. Kd4 {[%emt 0:00:05]} Kg3 {[%emt 0:00:36]} 69. Ke3 {[%emt 0:00:05]} h2 {[%emt 0:00:23]} 70. Ra1 {[%emt 0:00:11]} f2 {[%emt 0:00:07] Black used his chance.  Weighted Error Value: White=1.02/Black=0.29 (precise)} 0-1

[Event "10th Amsterdam Science Park 2022"]
[Site "Amsterdam"]
[Date "2022.07.19"]
[Round "2.3"]
[White "Bosboom, Manuel"]
[Black "Bogaard, Milo"]
[Result "1-0"]
[ECO "A05"]
[WhiteElo "2381"]
[BlackElo "2079"]
[Annotator "TA"]
[PlyCount "71"]
[EventDate "2022.07.18"]
[EventCountry "NED"]
[SourceTitle "playchess.com"]
[Source "ChessBase"]
[SourceQuality "1"]
[TimeControl "5400+30"]

{[%evp 9,71,-31,-19,-43,-18,-52,-48,-76,-95,-94,-35,-33,-39,-65,-72,-89,-55,-48,-31,-63,-37,-81,-80,-78,-81,-77,-67,-105,-106,-112,-97,-97,-92,-86,-70,-73,-94,-114,-99,-170,-172,-172,-178,-173,17,0,0,0,0,0,41,48,36,53,116,66,203,148,131,115,618,601,29977,5510]} 1. Nf3 {[%emt 0:00:27]} c5 {[%emt 0:00:16]} 2. b3 {[%emt 0:01:31]} Nf6 {[%emt 0:01:45]} 3. Bb2 {[%emt 0:00:51]} g6 {[%emt 0:02:35]} 4. e4 {[%emt 0:08:24][%cal Be2e4,Be4e5][%mdl 32]} Bg7 {[%emt 0:02:37]} 5. e5 {[%emt 0:06:48]} Nd5 {[%emt 0:03:07]} 6. h4 {[%emt 0:14:53] A05: Réti Opening: 1 Nf3 Nf6.} d6 {[%emt 0:20:01]} 7. h5 {[%emt 0:06:44]} Bg4 {[%emt 0:06:41] [#]} 8. Bc4 $146 {[%emt 0:09:54] Black is slightly better.} ({Predecessor:} 8. Bb5+ Nc6 9. hxg6 hxg6 10. Rxh8+ Bxh8 11. Qe2 Bxf3 12. Qxf3 Bxe5 13. Bxe5 dxe5 14. Na3 {1-0 (41) Peng,S (2390)-Ikeda,J (2437) Paracin 2018}) 8... e6 {[%emt 0:16:46]} 9. Nc3 {[%emt 0:21:22]} Nxc3 {[%emt 0:08:30]} ({Black should try} 9... Bxe5 $17 {White must now prevent ...Nf4.} 10. hxg6 hxg6 11. Rxh8+ Bxh8) 10. Bxc3 $15 {[%emt 0:04:14]} dxe5 {[%emt 0:06:20]} 11. h6 {[%emt 0:03:23]} Bf6 {[%emt 0:00:16]} 12. Qe2 {[%emt 0:01:03]} Nc6 {[%emt 0:06:57]} 13. Bb5 {[%emt 0:00:49]} Qd5 {[%emt 0:04:09]} 14. Qe3 {[%emt 0:01:32]} Bxf3 {[%emt 0:01:23]} 15. gxf3 {[%emt 0:00:20]} Ke7 {[%emt 0:01:39]} 16. Bxc6 {[%emt 0:01:10]} Qxc6 {[%emt 0:03:18]} (16... bxc6 17. O-O-O $11) 17. Rg1 {[%emt 0:02:26]} Rhd8 {[%emt 0:03:47]} 18. Rg4 {[%emt 0:03:10]} Rd5 {[%emt 0:02:15]} 19. Re4 {[%emt 0:02:06]} Rad8 {[%emt 0:00:21]} 20. O-O-O {[%emt 0:00:17]} b5 {[%emt 0:00:37][%cal Bb7b5,Bb5b4][%mdl 32]} (20... Bh8 {seems wilder.} 21. Bxe5 Rxe5 22. Rxe5 Bxe5 23. Qxe5 Qd5) 21. d3 {[%emt 0:02:13]} b4 {[%emt 0:00:43]} 22. Bb2 {[%emt 0:00:15]} a5 {[%emt 0:00:18][%cal Ba7a5,Ba5a4][%mdl 32]} 23. Re1 {[%emt 0:00:47]} a4 {[%emt 0:00:45]} 24. f4 {[%emt 0:02:06] [#]} (24. Bxe5 $17 Rxe5 25. Rxe5 Bxe5 26. Qxe5) 24... exf4 $1 $19 {[%emt 0:02:47]} (24... axb3 25. fxe5 bxa2 26. exf6+ Kf8 27. Re5 $11) 25. Bxf6+ {[%emt 0:00:02]} Kxf6 {[%emt 0:00:07]} 26. Rxf4+ {[%emt 0:01:00]} ({But not} 26. Qxf4+ Ke7 27. Qh4+ g5) 26... Rf5 $2 {[%emt 0:02:17]} (26... Ke7 $19 {...Qd6 is the strong threat.} 27. Qf3 f5) 27. Qe5+ {[%emt 0:01:56]} Ke7 {[%emt 0:00:07]} 28. Rxf5 {[%emt 0:00:05]} gxf5 {[%emt 0:00:05]} 29. Qxf5 {[%emt 0:01:06]} axb3 $11 {[%emt 0:00:42][%mdl 4096] [#] Endgame aiming for ...Rd5. KQR-KQR} 30. Qg5+ {[%emt 0:00:47]} ({Of course not} 30. cxb3 Rd5 31. Qxh7 Rh5 $11) 30... Ke8 {[%emt 0:00:30]} 31. axb3 {[%emt 0:00:10]} Qd6 {[%emt 0:03:25]} (31... Qd5 $14 32. Qg8+ Ke7 33. Qxh7 Qg5+ 34. Kb1 Qf6) 32. Re4 {[%emt 0:01:38]} ({White should play} 32. Re5 $16) 32... Qa6 {[%emt 0:00:47]} ({Better is} 32... Qe7 $14 33. Qg8+ Kd7 34. Qxh7 Qg5+ 35. Kd1 Qh5+ 36. Kd2 Qf3) 33. Qxc5 {[%emt 0:01:52] Hoping for Rg4.} Rc8 {[%emt 0:00:29]} 34. Qd4 {[%emt 0:00:48] And now Rf4 would win. White is much more active.} Qa3+ $2 {[%emt 0:00:21][%mdl 8192]} (34... Qa2 $16 35. Qb2 (35. Qh8+ Kd7 $16) 35... Qxb2+ 36. Kxb2 Rb8) 35. Kd2 $18 {[%emt 0:00:34] White threatens Qh8+ and mate.} Qa2 {[%emt 0:00:45]} 36. Qh8+ {[%emt 0:00:12] White used his chance.  Weighted Error Value: White=0.17 (very precise) /Black=0.72} 1-0

[Event "10th Amsterdam Science Park 2022"]
[Site "Amsterdam"]
[Date "2022.07.19"]
[Round "2.4"]
[White "Pronk, Sven"]
[Black "Blom, Vincent"]
[Result "0-1"]
[ECO "A45"]
[WhiteElo "2105"]
[BlackElo "2325"]
[Annotator "TA"]
[PlyCount "70"]
[EventDate "2022.07.18"]
[EventCountry "NED"]
[SourceTitle "playchess.com"]
[Source "ChessBase"]
[SourceQuality "1"]
[TimeControl "5400+30"]

{[%evp 9,70,0,0,6,38,-35,-28,-41,-24,-121,-115,-120,-117,-115,-108,-107,-106,-105,-71,-173,-158,-181,-110,-113,-102,-127,-134,-155,-130,-141,-156,-153,-145,-204,-196,-203,-203,-200,-140,-193,-125,-125,-125,-184,-167,-219,-175,-243,-243,-243,-238,-233,-229,-239,-220,-357,-348,-366,-362,-375,-352,-29987,-29988]} 1. d4 {[%emt 0:00:03]} Nf6 {[%emt 0:02:28]} 2. Bg5 {[%emt 0:00:13]} e6 {[%emt 0:00:23]} 3. e4 {[%emt 0:00:06]} h6 {[%emt 0:01:29]} 4. Bxf6 {[%emt 0:00:13]} Qxf6 {[%emt 0:00:16]} 5. Nc3 {[%emt 0:00:05]} Bb4 {[%emt 0:07:26]} 6. Qd3 {[%emt 0:00:17] A45: Trompowsky Attack.} e5 {[%emt 0:14:48] [#]} 7. d5 $146 {[%emt 0:08:20]} (7. dxe5 $14 Qxe5 8. Nge2) ({Predecessor:} 7. dxe5 Qxe5 8. Nge2 b6 9. O-O-O Ba6 10. Qd5 Qxd5 11. Nxd5 Bd6 12. Nd4 Kd8 13. f4 Re8 {½-½ (34) Sorm,D (2319)-Melia,S (2473) Caleta 2015}) 7... O-O {[%emt 0:12:10]} 8. Nf3 {[%emt 0:07:31] Black has an edge.} d6 {[%emt 0:08:04]} 9. Rg1 {[%emt 0:07:25]} (9. a3 $11 {keeps the balance.} Ba5 10. Be2) 9... Nd7 $17 {[%emt 0:05:31]} 10. Qe3 {[%emt 0:13:28]} Bc5 {[%emt 0:07:16]} 11. Qd2 {[%emt 0:00:50]} a6 {[%emt 0:01:11]} 12. Be2 {[%emt 0:07:12]} b5 {[%emt 0:06:32]} 13. g4 {[%emt 0:04:51]} Qf4 {[%emt 0:02:21]} 14. g5 {[%emt 0:11:21] [#]} (14. Qxf4 $17 exf4 15. a3) 14... hxg5 $1 $19 {[%emt 0:04:17]} 15. Rxg5 {[%emt 0:03:53]} Qxd2+ {[%emt 0:01:51]} (15... b4 $19 16. Qxf4 exf4) 16. Nxd2 $17 {[%emt 0:01:22]} Nf6 {[%emt 0:01:43]} 17. Bf3 {[%emt 0:09:16]} g6 {[%emt 0:02:51]} 18. Ke2 {[%emt 0:01:27]} Kg7 {[%emt 0:00:12]} 19. h4 {[%emt 0:05:34]} Rh8 {[%emt 0:01:48]} 20. Rh1 {[%emt 0:00:23]} Bd7 {[%emt 0:03:56]} 21. Nd1 {[%emt 0:09:38]} (21. Rgg1 $17) 21... Rh6 $19 {[%emt 0:01:26]} 22. Rg2 {[%emt 0:04:50]} Rah8 {[%emt 0:00:32]} 23. Rgh2 {[%emt 0:00:01]} Kf8 {[%emt 0:00:51][%cal Og6g5]} 24. Ne3 {[%emt 0:02:34]} (24. Nf1 $17) 24... Bxe3 {[%emt 0:02:20]} (24... g5 $19 {[%cal Rg5h4]} 25. Bg2 Rh5) 25. Kxe3 $17 {[%emt 0:00:36]} g5 {[%emt 0:00:06]} 26. Nf1 {[%emt 0:01:22]} (26. h5 $17) 26... gxh4 {[%emt 0:01:14]} 27. Ke2 {[%emt 0:00:22]} (27. Be2 {was called for.}) 27... c6 {[%emt 0:01:00]} 28. Ne3 {[%emt 0:00:37]} (28. dxc6 $142 Bxc6 29. Ne3) 28... cxd5 $19 {[%emt 0:00:13]} 29. Nxd5 {[%emt 0:00:29]} Nxd5 {[%emt 0:00:41]} 30. exd5 {[%emt 0:00:00]} Bf5 {[%emt 0:01:25] Against Be4} 31. Rc1 {[%emt 0:00:27]} Ke7 {[%emt 0:00:48]} 32. c4 {[%emt 0:01:02]} (32. Ke3 {was necessary.}) 32... Rc8 {[%emt 0:00:09]} 33. b3 {[%emt 0:00:06]} h3 {[%emt 0:00:34]} 34. Kd2 {[%emt 0:00:15]} Rh4 {[%emt 0:00:18]} 35. cxb5 {[%emt 0:00:32] [#]} (35. Be2 $19) 35... Rd4+ {[%emt 0:00:08] Weighted Error Value: White=0.57/Black=0.14 (very precise)} 0-1

[Event "10th Amsterdam Science Park 2022"]
[Site "Amsterdam"]
[Date "2022.07.19"]
[Round "2.5"]
[White "Van Baar, Esper"]
[Black "Brouwer, Rein"]
[Result "0-1"]
[ECO "B11"]
[WhiteElo "2281"]
[BlackElo "2076"]
[Annotator "TA"]
[PlyCount "106"]
[EventDate "2022.07.18"]
[EventCountry "NED"]
[SourceTitle "playchess.com"]
[Source "ChessBase"]
[SourceQuality "1"]
[TimeControl "5400+30"]

{[%evp 10,106,28,16,18,13,7,9,19,18,19,28,28,20,32,6,15,0,0,0,10,8,11,0,53,0,0,0,10,0,34,33,24,0,0,0,9,0,33,-24,-25,-25,-30,-18,0,0,0,0,0,-1,-8,-16,-8,-8,-12,-34,-15,-31,-40,-52,-41,-73,0,-42,-39,-36,0,-166,-171,-234,-235,-268,-277,-413,-399,-379,-381,-372,-369,-389,-368,-364,-366,-350,-327,-762,-428,-420,-422,-568,-414,-415,-411,-2005,-1720,-29983,-29984,-29995,-29996]} 1. e4 {[%emt 0:00:21]} c6 {[%emt 0:00:16]} 2. Nc3 {[%emt 0:00:07]} d5 {[%emt 0:00:12]} 3. Nf3 {[%emt 0:00:39]} dxe4 {[%emt 0:00:26]} 4. Nxe4 {[%emt 0:00:06]} Nf6 {[%emt 0:00:28]} 5. Qe2 {[%emt 0:00:22]} Nxe4 {[%emt 0:00:14]} 6. Qxe4 {[%emt 0:00:15]} Qa5 {[%emt 0:00:53] B11: Caro-Kann: Two Knights Variation.} 7. c3 {[%emt 0:02:34]} Bf5 {[%emt 0:00:28]} 8. Qf4 {[%emt 0:02:44]} e6 {[%emt 0:00:22] The position is equal.} 9. d4 {[%emt 0:01:02]} Nd7 {[%emt 0:00:56]} 10. Be2 {[%emt 0:04:00]} Be7 {[%emt 0:00:54]} 11. O-O {[%emt 0:01:49]} O-O {[%emt 0:02:50]} 12. a4 {[%emt 0:06:23] [#]} Nf6 $146 {[%emt 0:03:20]} ({Predecessor:} 12... Bg6 13. b4 Qd5 14. Rd1 Bf6 15. Qg3 Qb3 16. Bd2 e5 17. dxe5 Nxe5 18. Nxe5 Bxe5 19. Qxe5 {½-½ (78) Brunello,M (2379)-Mkrtchyan,M (2093) Iasi 2021}) 13. b4 {[%emt 0:10:27]} Qd8 {[%emt 0:00:56]} 14. a5 {[%emt 0:00:44]} Bd6 {[%emt 0:13:57]} (14... Nd5 $5 15. Qd2 Bd6 $11) 15. Qd2 {[%emt 0:03:50]} Qc7 {[%emt 0:12:02]} 16. Qb2 {[%emt 0:02:25]} Nd5 {[%emt 0:03:56]} (16... b5 $11) 17. g3 {[%emt 0:01:48]} (17. c4 $14) 17... b5 $11 {[%emt 0:04:41]} 18. Re1 {[%emt 0:08:40]} Bg4 {[%emt 0:05:55]} 19. Bd2 {[%emt 0:03:01]} h5 {[%emt 0:01:08]} 20. Kg2 {[%emt 0:03:03]} Rfe8 {[%emt 0:04:53]} 21. Bd3 {[%emt 0:08:53]} Bxf3+ {[%emt 0:09:30]} 22. Kxf3 {[%emt 0:00:06]} e5 {[%emt 0:00:23]} 23. Kg2 {[%emt 0:00:54]} Rab8 {[%emt 0:04:50]} 24. Re2 {[%emt 0:03:39]} (24. Rac1 $14) 24... exd4 {[%emt 0:01:15]} 25. cxd4 {[%emt 0:03:10]} Rxe2 {[%emt 0:04:14]} 26. Bxe2 {[%emt 0:00:14] A strong pair of Bishops.} Qe7 {[%emt 0:01:07][%csl LRb4,LRe2]} 27. Bxh5 {[%emt 0:01:35]} Bxb4 {[%emt 0:02:23]} 28. Re1 {[%emt 0:03:31]} Qd6 {[%emt 0:00:38]} 29. Bxb4 {[%emt 0:00:50]} Nxb4 {[%emt 0:02:00]} 30. Qb3 {[%emt 0:10:01] Against Nd3} Qd5+ {[%emt 0:01:52]} 31. Qxd5 {[%emt 0:00:28]} Nxd5 {[%emt 0:01:20][%mdl 4096] Endgame KRB-KRN} 32. Bd1 {[%emt 0:00:41]} Kf8 {[%emt 0:02:48]} 33. Bb3 {[%emt 0:00:33]} Rd8 {[%emt 0:00:19] White must now prevent ...Ne7.} 34. Re4 {[%emt 0:02:08]} Nc3 {[%emt 0:02:00]} 35. Rf4 {[%emt 0:16:57] [#]} Nd5 {[%emt 0:00:22] Black is more active.} (35... Rd7 $1 $17 {aiming for ...Ne2.} 36. Kf3 Nd5) 36. Rh4 {[%emt 0:00:00]} Ke7 {[%emt 0:01:01]} 37. Re4+ {[%emt 0:00:00]} Kf8 {[%emt 0:04:17]} 38. Kf3 $2 {[%emt 0:00:00] White is now going downhill.} (38. Rh4 $11) 38... Nf6 $19 {[%emt 0:00:14]} 39. Rf4 {[%emt 0:00:00] [#]} (39. Rh4 $142) 39... c5 $1 {[%emt 0:00:50][%cal Bc6c5,Bc5c4][%mdl 32]} 40. Ke2 {[%emt 0:01:57]} c4 {[%emt 0:00:47]} ({Weaker is} 40... cxd4 41. g4 $11) (40... Rxd4 41. Rxd4 cxd4 42. Kd3 $16) 41. Ba2 {[%emt 0:00:00]} (41. Bd1 {was necessary.}) 41... Nd5 {[%emt 0:00:00]} 42. Rf3 {[%emt 0:00:00] Prevents Nc3+.} Nb4 {[%emt 0:00:00]} 43. Bb1 {[%emt 0:00:00]} Rxd4 {[%emt 0:00:00]} 44. Bg6 {[%emt 0:00:00]} Rd7 {[%emt 0:00:00]} 45. Bf5 {[%emt 0:00:00]} Re7+ {[%emt 0:00:00]} 46. Kd2 {[%emt 0:00:00]} Nd5 {[%emt 0:00:00]} 47. Bc8 $2 {[%emt 0:00:00]} (47. Bc2) 47... b4 {[%emt 0:00:00][%cal Bb5b4,Bb4b3][%mdl 32]} 48. Ba6 {[%emt 0:00:00]} Re4 {[%emt 0:00:00]} 49. Rf5 {[%emt 0:00:00]} Rd4+ {[%emt 0:00:00]} 50. Kc1 {[%emt 0:00:00]} b3 {[%emt 0:00:00] ...c3 is the strong threat.} 51. Rf3 {[%emt 0:02:18]} (51. Bxc4 $142 Rxc4+ 52. Kb2) 51... c3 {[%emt 0:00:00]} 52. Bd3 {[%emt 0:03:34]} Nb4 {[%emt 0:00:28]} 53. Be2 {[%emt 0:00:39]} Na2+ {[%emt 0:01:07] Weighted Error Value: White=0.54/Black=0.17 (very precise)} 0-1